bitfinex/quotes_BTCUSD_20240701
["timestamp","ask_amount","ask_price","bid_price","bid_amount"]
[1719844233557,0.477106,62879.0,62878.0,0.158831]
[1719844233760,0.159035,62879.0,62878.0,0.158831]
[1719844234405,0.477106,62879.0,62878.0,0.158831]
[1719844236175,1.113248,62879.0,62878.0,0.158831]
[1719844236382,1.313248,62879.0,62878.0,0.158831]
[1719844236587,1.313248,62879.0,62878.0,0.160831]
[1719844237027,1.313248,62879.0,62878.0,0.158831]
[1719844237232,1.95599169,62879.0,62878.0,0.158831]
[1719844237382,1.95599169,62879.0,62870.0,0.0829]
[1719844237383,0.795277,62871.0,62870.0,0.0829]
[1719844237722,0.87462004,62871.0,62870.0,0.241731]
[1719844238711,0.318103,62873.0,62870.0,0.2719841]
[1719844238911,0.318147,62864.0,62863.0,0.158831]
[1719844239123,0.2263,62862.0,62856.0,0.159755]
[1719844239322,0.15909,62858.0,62857.0,0.0763]
[1719844239695,0.159068,62866.0,62859.0,0.0763]
[1719844239806,0.318134,62867.0,62860.0,0.065]
[1719844240004,0.318142,62865.0,62860.0,0.065]
[1719844240257,7.467e-05,62870.0,62860.0,0.065]
[1719844240258,0.477243,62861.0,62860.0,0.065]
[1719844241199,7.467e-05,62870.0,62863.0,0.0601]
[1719844241200,0.159073,62864.0,62863.0,0.0601]
[1719844241404,0.159073,62864.0,62863.0,0.0801]
[1719844241608,0.159073,62864.0,62863.0,0.1422]
[1719844242173,0.47722,62864.0,62863.0,0.1422]
[1719844242985,0.47822,62864.0,62863.0,0.1422]
[1719844243728,0.47922,62864.0,62863.0,0.1422]
[1719844244129,0.47922,62864.0,62863.0,0.30096706]
[1719844245420,0.47822,62864.0,62863.0,0.30096706]
[1719844245847,0.797367,62864.0,62863.0,0.158831]
[1719844246054,1.117514,62864.0,62863.0,0.158831]
[1719844246223,1.115514,62864.0,62863.0,0.158831]
[1719844246425,0.47725,62860.0,62859.0,0.0764]
[1719844246652,0.47725,62860.0,62859.0,0.235231]
[1719844247212,0.47725,62860.0,62859.0,0.299131]
[1719844249529,0.47725,62860.0,62859.0,0.319131]
[1719844249733,0.2263,62871.0,62864.0,0.02]
[1719844249934,0.2263,62871.0,62859.0,0.1909289]
[1719844249935,0.15906,62869.0,62868.0,0.02]
[1719844250139,0.15906,62869.0,62868.0,0.178831]
[1719844250486,0.477181,62869.0,62868.0,0.303131]
[1719844250724,0.477181,62869.0,62868.0,0.323131]
[1719844251749,0.477181,62869.0,62868.0,0.303131]
[1719844252681,0.795302,62869.0,62868.0,0.303131]
[1719844252982,0.796302,62869.0,62868.0,0.303131]
[1719844253194,0.797302,62869.0,62868.0,0.303131]
[1719844254003,0.16106,62869.0,62868.0,0.3554441]
[1719844254205,0.002,62869.0,62868.0,0.3554441]
[1719844254448,0.002,62869.0,62868.0,1.16403508]
[1719844254652,0.0645,62894.0,62868.0,1.16403508]
[1719844254653,0.07205307,62898.0,62888.0,0.0853]
[1719844254854,0.07205307,62898.0,62889.0,0.03665]
[1719844254855,0.159008,62890.0,62889.0,0.03665]
[1719844255848,0.47703,62889.0,62888.0,0.224131]
[1719844257457,0.79505,62889.0,62888.0,0.224131]
[1719844258656,0.79505,62889.0,62888.0,0.158831]
[1719844258859,1.11307,62889.0,62888.0,0.158831]
[1719844259472,0.79505,62889.0,62888.0,0.158831]
[1719844259695,0.79505,62889.0,62888.0,0.1747141]
[1719844259696,0.47703,62889.0,62888.0,0.1747141]
[1719844260115,0.79505,62889.0,62888.0,0.1747141]
[1719844260453,0.159002,62893.0,62889.0,0.02]
[1719844260663,0.07934304,62897.0,62891.0,0.02]
[1719844260664,0.159003,62892.0,62891.0,0.02]
[1719844260859,0.317999,62894.0,62889.0,0.03384141]
[1719844260860,0.158998,62894.0,62889.0,0.05384141]
[1719844261066,0.07934304,62891.0,62889.0,0.03384141]
[1719844261279,0.23835004,62891.0,62889.0,0.03384141]
[1719844261486,0.477022,62890.0,62889.0,0.03384141]
[1719844262044,0.47703,62889.0,62888.0,0.158831]
[1719844262249,0.79505,62889.0,62888.0,0.158831]
[1719844263260,0.07134462,62894.0,62888.0,0.158831]
[1719844263580,0.159008,62890.0,62888.0,0.158831]
[1719844263781,0.15901,62889.0,62888.0,0.158831]
[1719844264348,0.159008,62890.0,62888.0,0.158831]
[1719844264646,0.38939048,62894.0,62889.0,0.0522531]
[1719844264647,0.317996,62894.0,62889.0,0.0522531]
[1719844264825,0.317996,62894.0,62892.0,0.02]
[1719844264826,0.321996,62894.0,62892.0,0.02]
[1719844265068,0.162999,62894.0,62892.0,0.02]
[1719844265290,0.162999,62894.0,62893.0,0.1652]
[1719844265291,0.004,62894.0,62893.0,0.1652]
[1719844265494,0.158996,62895.0,62893.0,0.1452]
[1719844265703,0.00084,62898.0,62897.0,0.02]
[1719844265913,0.00084,62898.0,62897.0,0.324431]
[1719844266501,0.00084,62898.0,62897.0,0.304431]
[1719844266699,0.00084,62898.0,62897.0,0.324431]
[1719844267528,0.00084,62898.0,62897.0,0.48676998]
[1719844267734,0.00084,62898.0,62897.0,0.5634874]
[1719844268273,0.00284,62898.0,62897.0,0.5634874]
[1719844269128,0.00484,62898.0,62897.0,0.5434874]
[1719844269719,0.00084,62898.0,62897.0,0.5434874]
[1719844270523,0.00084,62898.0,62897.0,0.40214842]
[1719844270768,0.00184,62898.0,62897.0,0.325431]
[1719844270922,0.00184,62898.0,62897.0,0.1666]
[1719844271506,0.00284,62898.0,62897.0,0.1736]
[1719844271911,0.00284,62898.0,62897.0,0.1536]
[1719844272108,0.00284,62898.0,62897.0,0.1466]
[1719844272109,0.160827,62898.0,62897.0,0.1466]
[1719844272551,0.159827,62898.0,62897.0,0.1456]
[1719844273087,0.159827,62898.0,62897.0,0.16703605]
[1719844273280,0.00084,62898.0,62897.0,0.16703605]
[1719844273584,0.00084,62898.0,62897.0,0.16603605]
[1719844273811,0.00084,62898.0,62897.0,0.16903605]
[1719844274042,0.00084,62898.0,62897.0,0.18903605]
[1719844274246,0.00184,62898.0,62897.0,0.17003605]
[1719844274399,0.00184,62898.0,62897.0,0.19003605]
[1719844275505,0.00184,62898.0,62897.0,0.35237503]
[1719844275929,0.00184,62898.0,62897.0,0.34937503]
[1719844276133,0.00184,62898.0,62897.0,0.51836503]
[1719844276332,0.00184,62898.0,62897.0,0.85934503]
[1719844276506,0.00184,62898.0,62897.0,1.18432503]
[1719844276507,0.00284,62898.0,62897.0,1.18432503]
[1719844276707,0.00184,62898.0,62897.0,1.17632503]
[1719844276914,0.00084,62898.0,62897.0,1.17632503]
[1719844277109,0.00184,62898.0,62897.0,1.18332503]
[1719844277327,0.00184,62898.0,62897.0,0.85534503]
[1719844277524,0.00284,62898.0,62897.0,0.85634503]
[1719844279138,0.00284,62898.0,62897.0,0.33593898]
[1719844280355,0.00284,62898.0,62897.0,0.50492898]
[1719844280729,0.00284,62898.0,62897.0,0.33593898]
[1719844281163,0.00284,62898.0,62897.0,0.1736]
[1719844282249,0.00284,62898.0,62897.0,0.028]
[1719844283414,0.479802,62898.0,62897.0,0.008]
[1719844284420,0.797777,62898.0,62897.0,0.008]
[1719844285024,0.479802,62898.0,62897.0,0.008]
[1719844285882,0.479802,62898.0,62897.0,0.028]
[1719844285883,0.161827,62898.0,62897.0,0.028]
[1719844286100,0.161827,62898.0,62897.0,0.008]
[1719844286312,0.479802,62898.0,62897.0,0.008]
[1719844286781,0.47895813,62898.0,62897.0,0.008]
[1719844288301,0.79693313,62898.0,62897.0,0.008]
[1719844289179,0.47895813,62898.0,62897.0,0.008]
[1719844289386,0.47795813,62898.0,62897.0,0.007]
[1719844289703,0.47795813,62898.0,62897.0,0.027]
[1719844289871,0.00199613,62898.0,62897.0,0.027]
[1719844290028,0.00199613,62898.0,62897.0,0.03622]
[1719844290234,0.00099613,62898.0,62897.0,0.03622]
[1719844290448,0.15998313,62898.0,62897.0,0.03622]
[1719844290810,0.001,62898.0,62897.0,0.0809]
[1719844291251,0.002,62898.0,62897.0,0.0809]
[1719844292014,0.003,62898.0,62897.0,0.0809]
[1719844292410,0.160987,62898.0,62897.0,0.0609]
[1719844292616,0.160987,62898.0,62897.0,0.02809]
[1719844293070,0.161987,62898.0,62896.0,0.02]
[1719844293455,0.161987,62898.0,62897.0,0.02]
[1719844293660,0.159987,62898.0,62897.0,0.02]
[1719844294068,0.001,62898.0,62897.0,0.02]
[1719844294904,0.002,62898.0,62897.0,0.02]
[1719844295136,0.002,62898.0,62897.0,0.0519431]
[1719844295346,0.002,62898.0,62896.0,0.02]
[1719844295560,0.23833304,62897.0,62895.0,0.02]
[1719844295769,0.23833304,62897.0,62896.0,0.02]
[1719844295936,0.23833304,62897.0,62894.0,0.178831]
[1719844296366,0.23833304,62897.0,62895.0,0.02]
[1719844296801,0.15899,62897.0,62896.0,0.02]
[1719844297181,0.160987,62898.0,62897.0,0.02]
[1719844297381,0.544258,62902.0,62897.0,0.0378831]
[1719844297523,0.158972,62904.0,62902.0,0.02]
[1719844297721,0.158972,62904.0,62903.0,0.02]
[1719844297977,0.15896,62909.0,62906.0,0.02]
[1719844298137,0.158962,62908.0,62906.0,0.0378831]
[1719844298540,0.158962,62908.0,62902.0,0.158831]
[1719844298742,0.158966,62907.0,62902.0,0.158831]
[1719844298946,0.794872,62903.0,62902.0,0.158831]
[1719844300175,1.18420001,62903.0,62902.0,0.158831]
[1719844300369,0.158994,62896.0,62895.0,0.158831]
[1719844301633,0.158994,62896.0,62895.0,0.164831]
[1719844301835,0.159994,62896.0,62895.0,0.164831]
[1719844302239,0.477979,62896.0,62895.0,0.164831]
[1719844302672,0.477979,62896.0,62895.0,0.158831]
[1719844303356,0.57331428,62896.0,62895.0,0.158831]
[1719844303808,1.77990376,62896.0,62895.0,0.158831]
[1719844303984,1.77990376,62896.0,62885.0,0.4716]
[1719844303985,0.159017,62886.0,62885.0,0.4716]
[1719844304191,0.159021,62885.0,62883.0,0.158831]
[1719844304417,0.23054094,62885.0,62883.0,0.158831]
[1719844304599,0.23054764,62885.0,62884.0,0.0305731]
[1719844304803,0.07152664,62885.0,62884.0,0.21291208]
[1719844305010,0.07151249,62888.0,62884.0,0.21291208]
[1719844305199,0.07151249,62887.0,62886.0,0.02]
[1719844305400,0.07151743,62887.0,62886.0,0.02]
[1719844306011,0.07151743,62887.0,62886.0,0.14437431]
[1719844306215,0.07251743,62888.0,62887.0,0.02]
[1719844306432,0.001,62888.0,62887.0,0.02]
[1719844306628,0.001,62888.0,62887.0,0.32623898]
[1719844307650,0.07150152,62896.0,62895.0,0.1627]
[1719844307948,0.07150152,62896.0,62895.0,0.337801]
[1719844308149,0.07150152,62896.0,62895.0,0.317801]
[1719844308553,0.09533537,62897.0,62895.0,0.317801]
[1719844308965,0.09533537,62897.0,62896.0,0.02]
[1719844310641,0.11916921,62899.0,62896.0,0.02]
[1719844310814,0.15898,62901.0,62899.0,0.02]
[1719844311015,0.15898,62901.0,62900.0,0.02]
[1719844311169,0.17219907,62901.0,62900.0,0.02]
[1719844312394,0.18319907,62901.0,62900.0,0.02]
[1719844312841,0.17219907,62901.0,62900.0,0.02]
[1719844313016,0.158982,62900.0,62896.0,0.02]
[1719844313236,0.0953742,62897.0,62896.0,0.02]
[1719844313639,0.0953742,62897.0,62895.0,0.317801]
[1719844313806,0.09537587,62897.0,62895.0,0.317801]
[1719844314001,0.09537587,62897.0,62895.0,0.175101]
[1719844314209,0.27821184,62896.0,62895.0,0.158831]
[1719844314578,0.01321969,62896.0,62895.0,0.158831]
[1719844314911,0.11922774,62897.0,62895.0,0.158831]
[1719844315111,0.11922774,62897.0,62896.0,0.02]
[1719844315457,0.11922774,62897.0,62896.0,0.001]
[1719844315659,0.27821774,62897.0,62896.0,0.001]
[1719844315860,0.27821774,62897.0,62895.0,0.158831]
[1719844315861,0.158992,62896.0,62895.0,0.158831]
[1719844316061,0.158992,62896.0,62895.0,0.159831]
[1719844316464,0.01321981,62896.0,62895.0,0.158831]
[1719844316848,0.01321981,62896.0,62895.0,0.178831]
[1719844317045,0.16499,62897.0,62895.0,0.178831]
[1719844317244,0.01821994,62896.0,62895.0,0.178831]
[1719844317464,0.005,62896.0,62895.0,0.2107041]
[1719844318061,0.158992,62896.0,62895.0,0.1907041]
[1719844318261,0.17221179,62896.0,62895.0,0.1907041]
[1719844318663,0.17721179,62896.0,62895.0,0.158831]
[1719844319086,0.49519679,62896.0,62895.0,0.158831]
[1719844319329,0.87688179,62896.0,62895.0,0.158831]
[1719844320045,0.863662,62896.0,62895.0,0.158831]
[1719844320241,0.81318211,62896.0,62895.0,0.158831]
[1719844321073,1.13616711,62896.0,62895.0,0.158831]
[1719844321250,1.50554856,62896.0,62895.0,0.158831]
[1719844321474,1.36246711,62896.0,62895.0,0.158831]
[1719844321682,1.51046711,62896.0,62895.0,0.158831]
[1719844322161,1.51046711,62896.0,62884.0,0.4716]
[1719844322162,0.15902,62885.0,62884.0,0.4716]
[1719844322424,0.15902,62885.0,62879.0,0.081]
[1719844322425,0.159023,62884.0,62879.0,0.081]
[1719844322575,0.477099,62880.0,62879.0,0.158831]
[1719844322790,0.57250051,62880.0,62879.0,0.158831]
[1719844323058,0.477099,62880.0,62879.0,0.158831]
[1719844323218,0.795165,62880.0,62879.0,0.158831]
[1719844323393,0.477099,62880.0,62879.0,0.158831]
[1719844323595,0.59633281,62880.0,62879.0,0.158831]
[1719844323796,0.80838853,62880.0,62879.0,0.158831]
[1719844324022,1.03468853,62880.0,62879.0,0.158831]
[1719844324244,1.35275453,62880.0,62879.0,0.158831]
[1719844324476,0.79524,62874.0,62873.0,0.4716]
[1719844324608,1.48915953,62874.0,62873.0,0.47155701]
[1719844325033,1.63224833,62874.0,62873.0,0.47155701]
[1719844325248,1.48915953,62874.0,62873.0,0.47155701]
[1719844325457,0.80846601,62874.0,62873.0,0.53468821]
[1719844325668,0.80846597,62874.0,62873.0,0.53468821]
[1719844325956,0.477159,62872.0,62871.0,0.158831]
[1719844326111,0.795265,62872.0,62871.0,0.158831]
[1719844326272,0.89055282,62872.0,62871.0,0.158831]
[1719844326485,0.8905598,62872.0,62871.0,0.158831]
[1719844326695,0.795265,62872.0,62871.0,0.158831]
[1719844327105,0.795265,62872.0,62871.0,0.178831]
[1719844327306,0.86670946,62872.0,62871.0,0.178831]
[1719844327512,0.89052646,62872.0,62871.0,0.158831]
[1719844327766,0.800265,62872.0,62871.0,0.158831]
[1719844328151,0.89552646,62872.0,62871.0,0.158831]
[1719844328491,1.256771,62872.0,62871.0,0.158831]
[1719844328613,1.118371,62872.0,62871.0,0.158831]
[1719844329015,1.18979004,62872.0,62871.0,0.158831]
[1719844329243,1.129371,62872.0,62871.0,0.158831]
[1719844329441,1.124371,62872.0,62871.0,0.158831]
[1719844329674,1.130371,62872.0,62871.0,0.158831]
[1719844330124,0.494159,62872.0,62871.0,0.1748065]
[1719844330364,0.494159,62872.0,62871.0,0.3414065]
[1719844330365,0.028,62872.0,62871.0,0.3414065]
[1719844330569,0.022,62872.0,62871.0,0.3414065]
[1719844330979,0.028,62872.0,62871.0,0.50374548]
[1719844331183,0.028,62872.0,62871.0,0.34491448]
[1719844331424,0.07138565,62885.0,62871.0,0.34491448]
[1719844331637,0.07138565,62886.0,62885.0,0.02]
[1719844331902,0.09522987,62888.0,62887.0,0.02]
[1719844331903,0.159013,62888.0,62887.0,0.02]
[1719844332136,0.07138565,62891.0,62890.0,0.02]
[1719844332260,0.159003,62892.0,62890.0,0.0378831]
[1719844332464,0.07138565,62893.0,62889.0,0.02]
[1719844332465,0.318001,62893.0,62889.0,0.02]
[1719844332668,0.159006,62891.0,62886.0,0.02]
[1719844333085,0.159006,62891.0,62888.0,0.02]
[1719844333550,0.15901,62889.0,62887.0,0.02]
[1719844333845,0.15901,62889.0,62886.0,0.02]
[1719844334137,0.159017,62886.0,62885.0,0.158831]
[1719844334340,0.318012,62891.0,62886.0,0.02]
[1719844334564,0.07138565,62892.0,62889.0,0.02]
[1719844334770,0.159,62893.0,62892.0,0.02]
[1719844334976,0.07135687,62894.0,62893.0,0.02]
[1719844335182,0.317963,62901.0,62896.0,0.02]
[1719844335422,0.15069991,62902.0,62896.0,0.02]
[1719844335423,0.158988,62898.0,62896.0,0.02]
[1719844335832,0.158992,62897.0,62893.0,0.02]
[1719844336040,0.317977,62898.0,62893.0,0.02]
[1719844336041,0.07934304,62895.0,62893.0,0.02]
[1719844336455,0.07934304,62895.0,62893.0,0.01]
[1719844336688,0.07934304,62895.0,62892.0,0.158831]
[1719844336897,0.23833804,62895.0,62892.0,0.158831]
[1719844337450,0.23833804,62895.0,62892.0,0.178831]
[1719844337672,0.38933387,62898.0,62892.0,0.178831]
[1719844337673,0.158992,62897.0,62895.0,0.02]
[1719844337877,0.317977,62898.0,62895.0,0.02]
[1719844337878,0.158992,62896.0,62895.0,0.02]
[1719844338876,0.317974,62899.0,62896.0,0.02]
[1719844338877,0.15899,62897.0,62896.0,0.02]
[1719844339072,0.15899,62897.0,62893.0,0.02]
[1719844339073,0.00084,62895.0,62893.0,0.02]
[1719844339569,0.00084,62895.0,62892.0,0.158831]
[1719844339774,0.07934304,62894.0,62892.0,0.158831]
[1719844339995,0.477,62893.0,62892.0,0.158831]
[1719844340371,0.07219084,62895.0,62892.0,0.1767141]
[1719844340560,0.00084,62895.0,62892.0,0.1767141]
[1719844340765,0.00084,62895.0,62892.0,0.1967141]
[1719844341177,0.001,62894.0,62892.0,0.1967141]
[1719844341676,0.00084,62895.0,62894.0,0.02]
[1719844341870,0.00084,62895.0,62894.0,0.03967141]
[1719844342329,0.00084,62895.0,62894.0,0.17767141]
[1719844342946,0.00184,62895.0,62894.0,0.17767141]
[1719844343735,0.00184,62895.0,62894.0,0.17867141]
[1719844344147,0.00184,62895.0,62894.0,0.17861326]
[1719844344359,0.00084,62895.0,62894.0,0.17861326]
[1719844344769,0.00084,62895.0,62894.0,0.18061326]
[1719844346126,0.477825,62895.0,62894.0,0.003]
[1719844346387,0.795815,62895.0,62894.0,0.003]
[1719844346857,1.1851588,62895.0,62894.0,0.003]
[1719844347125,1.113805,62895.0,62894.0,0.003]
[1719844347366,1.113805,62895.0,62894.0,0.001]
[1719844347583,1.21497546,62895.0,62894.0,0.001]
[1719844348018,1.20897546,62895.0,62894.0,0.001]
[1719844348344,1.113805,62895.0,62894.0,0.001]
[1719844348555,1.119805,62895.0,62894.0,0.001]
[1719844348916,0.159015,62887.0,62886.0,0.01994185]
[1719844349118,0.159015,62887.0,62886.0,0.17877285]
[1719844349282,0.159013,62888.0,62886.0,0.17877285]
[1719844349485,0.15901,62889.0,62888.0,0.01994185]
[1719844349710,0.159004,62892.0,62891.0,0.01994185]
[1719844349914,0.318004,62893.0,62886.0,0.17877285]
[1719844350119,0.159012,62889.0,62886.0,0.17877285]
[1719844350322,0.159012,62889.0,62886.0,0.17977285]
[1719844350789,0.4687291,62892.0,62886.0,0.159831]
[1719844351002,0.477045,62887.0,62886.0,0.158831]
[1719844351394,0.795075,62887.0,62886.0,0.158831]
[1719844351600,0.795075,62887.0,62886.0,0.160831]
[1719844351741,0.477045,62887.0,62886.0,0.158831]
[1719844352759,0.477045,62887.0,62886.0,0.17877285]
[1719844353024,0.39734904,62892.0,62886.0,0.17877285]
[1719844353025,0.159003,62892.0,62889.0,0.01994185]
[1719844353471,0.159003,62892.0,62886.0,0.19116829]
[1719844353472,0.161003,62892.0,62890.0,0.01994185]
[1719844353672,0.159003,62892.0,62890.0,0.01994185]
[1719844353880,0.159006,62891.0,62887.0,0.01994185]
[1719844354035,0.318004,62893.0,62886.0,0.159831]
[1719844354036,0.159008,62890.0,62886.0,0.18277285]
[1719844354242,0.159008,62890.0,62886.0,0.17877285]
[1719844355096,0.159008,62890.0,62888.0,0.01994185]
[1719844355295,0.159008,62890.0,62886.0,0.158831]
[1719844355296,0.159008,62890.0,62889.0,0.01994185]
[1719844355610,0.159008,62890.0,62887.0,0.01994185]
[1719844355822,0.159008,62890.0,62886.0,0.17877285]
[1719844356103,0.159008,62890.0,62888.0,0.01994185]
[1719844356304,0.159008,62890.0,62886.0,0.17877285]
[1719844356619,0.159013,62888.0,62886.0,0.158831]
[1719844356823,0.004,62892.0,62889.0,0.01994185]
[1719844357022,0.002,62892.0,62891.0,0.01994185]
[1719844357361,0.00084,62895.0,62894.0,0.01994185]
[1719844357564,0.00084,62895.0,62894.0,0.17877285]
[1719844357767,0.00084,62895.0,62894.0,0.158831]
[1719844358509,0.00084,62895.0,62894.0,0.17877285]
[1719844358740,0.00084,62895.0,62894.0,0.158831]
[1719844358913,0.00284,62895.0,62894.0,0.17877285]
[1719844359113,0.00284,62895.0,62894.0,0.21084014]
[1719844360779,0.00384,62895.0,62894.0,0.21084014]
[1719844361363,0.00084,62895.0,62894.0,0.21084014]
[1719844361769,0.00184,62895.0,62894.0,0.21184014]
[1719844361931,0.00053015,62895.0,62894.0,0.21184014]
[1719844362358,0.00053015,62895.0,62894.0,0.18177285]
[1719844362751,0.00053015,62895.0,62894.0,0.02294185]
[1719844364016,0.00053015,62895.0,62894.0,0.003]
[1719844364592,0.15952515,62895.0,62894.0,0.003]
[1719844364808,0.79550515,62895.0,62894.0,0.003]
[1719844365010,0.80872512,62895.0,62894.0,0.003]
[1719844365385,0.79550515,62895.0,62894.0,0.003]
[1719844365584,0.79550515,62895.0,62894.0,0.002]
[1719844365585,0.00053015,62895.0,62894.0,0.002]
[1719844365734,0.00053015,62895.0,62892.0,0.01994185]
[1719844365901,0.00253015,62895.0,62892.0,0.17877285]
[1719844366105,0.00353015,62895.0,62893.0,0.01787729]
[1719844366536,0.00353015,62895.0,62893.0,0.03781914]
[1719844366729,0.00353015,62895.0,62894.0,0.16004185]
[1719844367571,0.00253015,62895.0,62894.0,0.16004185]
[1719844367900,0.00253015,62895.0,62894.0,0.19403484]
[1719844367901,0.00353015,62895.0,62894.0,0.19403484]
[1719844368037,0.00053015,62895.0,62894.0,0.19403484]
[1719844368236,0.00053015,62895.0,62894.0,0.19503484]
[1719844368438,0.00053015,62895.0,62894.0,0.19703484]
[1719844371501,0.00053015,62895.0,62894.0,0.35937382]
[1719844371745,0.00053015,62895.0,62894.0,0.84636582]
[1719844371875,0.00053015,62895.0,62894.0,1.26436082]
[1719844372103,0.00053015,62895.0,62894.0,1.80535582]
[1719844372304,0.00053015,62895.0,62894.0,2.00535582]
[1719844372615,0.00053015,62895.0,62894.0,2.00435582]
[1719844373032,0.00153015,62895.0,62894.0,2.00535582]
[1719844373256,0.00153015,62895.0,62894.0,1.60535582]
[1719844373457,0.00053015,62895.0,62894.0,1.60435582]
[1719844373695,0.00053015,62895.0,62894.0,1.80435582]
[1719844373874,0.00153015,62895.0,62894.0,1.60535582]
[1719844374643,0.00153015,62895.0,62894.0,0.94436582]
[1719844374844,0.00153015,62895.0,62894.0,0.93436582]
[1719844375080,0.00253015,62895.0,62894.0,0.47237382]
[1719844375386,0.00153015,62895.0,62894.0,0.62637082]
[1719844375889,0.00153015,62895.0,62894.0,0.45737382]
[1719844376113,0.00053015,62895.0,62894.0,0.46637382]
[1719844376270,0.00053015,62895.0,62894.0,0.46337382]
[1719844376271,0.00153015,62895.0,62894.0,0.46337382]
[1719844376591,0.00253015,62895.0,62894.0,0.46637382]
[1719844377089,0.00153015,62895.0,62894.0,0.46337382]
[1719844377455,0.00253015,62895.0,62894.0,0.48583728]
[1719844378081,0.00153015,62895.0,62894.0,0.47883728]
[1719844378686,0.00153015,62895.0,62894.0,0.48383728]
[1719844378687,0.00253015,62895.0,62894.0,0.48383728]
[1719844379086,0.00253015,62895.0,62894.0,0.38383728]
[1719844379313,0.00253015,62895.0,62894.0,0.20974429]
[1719844380174,0.00153015,62895.0,62894.0,0.20674429]
[1719844380549,0.00253015,62895.0,62894.0,0.04640531]
[1719844380947,0.00153015,62895.0,62894.0,0.04440531]
[1719844381352,0.00253015,62895.0,62894.0,0.04640531]
[1719844381555,0.00153015,62895.0,62894.0,0.04140531]
[1719844381759,0.00153015,62895.0,62894.0,0.02146346]
[1719844381943,0.1409,62894.0,62886.0,0.01994185]
[1719844382154,0.23835704,62888.0,62886.0,0.158831]
[1719844382355,0.54851636,62887.0,62886.0,0.158831]
[1719844382554,0.23048436,62888.0,62887.0,0.01994185]
[1719844382776,0.159013,62888.0,62887.0,0.01994185]
[1719844383354,0.001,62888.0,62887.0,0.01994185]
[1719844384805,0.15901,62889.0,62887.0,0.01994185]
[1719844385012,0.07146654,62891.0,62890.0,0.01994185]
[1719844385192,0.11911091,62894.0,62886.0,0.36266399]
[1719844385193,0.07146654,62893.0,62891.0,0.05820243]
[1719844385392,0.07146654,62894.0,62892.0,0.01994185]
[1719844385633,0.07199669,62895.0,62894.0,0.01994185]
[1719844385924,0.00053015,62895.0,62894.0,0.20082699]
[1719844386231,0.00053015,62895.0,62894.0,0.50794552]
[1719844386409,0.00053015,62895.0,62894.0,0.98175797]
[1719844386566,0.00053015,62895.0,62894.0,0.99175797]
[1719844386772,0.00053015,62895.0,62894.0,0.50476597]
[1719844387177,0.00053015,62895.0,62894.0,0.66376297]
[1719844387583,0.00053015,62895.0,62894.0,0.50476597]
[1719844388269,0.00053015,62895.0,62894.0,0.50776597]
[1719844389242,0.00053015,62895.0,62894.0,0.50976597]
[1719844389848,0.00053015,62895.0,62894.0,0.66876297]
[1719844390854,0.00053015,62895.0,62894.0,0.50976597]
[1719844391055,0.00053015,62895.0,62894.0,0.35093497]
[1719844391193,0.00053015,62895.0,62894.0,0.20933497]
[1719844392014,0.00053015,62895.0,62894.0,0.20733497]
[1719844392234,0.00053015,62895.0,62894.0,0.20433497]
[1719844392455,0.00153015,62895.0,62894.0,0.20933497]
[1719844392658,0.00153015,62895.0,62894.0,0.20633497]
[1719844393033,0.00053015,62895.0,62894.0,0.20433497]
[1719844393233,0.00053015,62895.0,62894.0,0.20733497]
[1719844393473,0.00153015,62895.0,62894.0,0.005]
[1719844393673,0.16052515,62895.0,62894.0,0.002]
[1719844394141,0.16152515,62895.0,62894.0,0.007]
[1719844394311,0.53981515,62895.0,62894.0,0.007]
[1719844394533,0.85780515,62895.0,62894.0,0.007]
[1719844395271,0.85680515,62895.0,62894.0,0.005]
[1719844395473,0.92824565,62895.0,62894.0,0.005]
[1719844395672,0.85680515,62895.0,62894.0,0.005]
[1719844395873,0.85680515,62895.0,62894.0,0.004]
[1719844396099,0.85580515,62895.0,62894.0,0.02394185]
[1719844396307,0.85580515,62895.0,62894.0,0.007]
[1719844396518,0.85580515,62895.0,62894.0,0.003]
[1719844396715,0.85580515,62895.0,62894.0,0.005]
[1719844396921,0.53781515,62895.0,62894.0,0.02494185]
[1719844397326,0.53781515,62895.0,62894.0,0.02194185]
[1719844397671,0.47751515,62895.0,62894.0,0.02494185]
[1719844398257,0.00053015,62895.0,62894.0,0.18728083]
[1719844398465,0.00053015,62895.0,62894.0,0.20891525]
[1719844399230,0.00053015,62895.0,62894.0,0.21209487]
[1719844399455,0.00053015,62895.0,62894.0,0.20891525]
[1719844399830,0.00053015,62895.0,62894.0,0.005]
[1719844399831,0.47751515,62895.0,62894.0,0.005]
[1719844400035,0.23100649,62895.0,62894.0,0.005]
[1719844400267,0.15952515,62895.0,62894.0,0.005]
[1719844400671,0.15952515,62895.0,62894.0,0.02494185]
[1719844400913,0.2310139,62895.0,62894.0,0.02494185]
[1719844401093,0.15952515,62895.0,62894.0,0.02494185]
[1719844401327,0.07202553,62895.0,62894.0,0.02494185]
[1719844401536,0.00053015,62895.0,62894.0,0.02494185]
[1719844401892,0.07202452,62895.0,62894.0,0.02494185]
[1719844402570,0.00053015,62895.0,62894.0,0.02494185]
[1719844402795,0.07203073,62895.0,62894.0,0.02494185]
[1719844404552,0.00053015,62895.0,62894.0,0.02494185]
[1719844404803,0.00053015,62895.0,62894.0,0.02586585]
[1719844405244,0.07203073,62895.0,62894.0,0.02586585]
[1719844405679,0.00053015,62895.0,62894.0,0.02586585]
[1719844405897,0.07203456,62895.0,62894.0,0.02586585]
[1719844406978,0.00053015,62895.0,62894.0,0.02586585]
[1719844407423,0.07203456,62895.0,62894.0,0.02586585]
[1719844408335,0.00053015,62895.0,62894.0,0.02586585]
[1719844408557,0.07203543,62895.0,62894.0,0.02586585]
[1719844408707,0.00053015,62895.0,62894.0,0.02586585]
[1719844409178,0.07203507,62895.0,62894.0,0.02586585]
[1719844410706,0.07203507,62895.0,62894.0,0.005924]
[1719844410858,0.00053015,62895.0,62894.0,0.005924]